fUSD/lending_fUSD_20241220
["ID","MTS","AMOUNT","RATE_DAILY","PERIOD"]
[346048890,1734659449046,-500.0,0.00024999,4]
[346048892,1734659449056,-2374.3,0.00024999,4]
[346048894,1734659449066,-817.28,0.00024999,4]
[346048896,1734659449076,-500.0,0.00024999,4]
[346048898,1734659449085,-2374.3,0.00024999,4]
[346048900,1734659449095,-817.28,0.00024999,4]
[346048902,1734659449104,-2374.4256744,0.00024999,4]
[346048904,1734659449115,-500.0,0.00024999,4]
[346048906,1734659449125,-817.28,0.00024999,4]
[346048908,1734659449134,-500.0,0.00024999,4]
[346048910,1734659449144,-817.28,0.00024999,4]
[346048912,1734659449154,-500.0,0.00024999,4]
[346048914,1734659449166,-817.28,0.00024999,4]
[346048916,1734659449176,-500.0,0.00024999,4]
[346048918,1734659449185,-817.28,0.00024999,4]
[346048920,1734659449195,-500.0,0.00024999,4]
[346048922,1734659449205,-817.28,0.00024999,4]
[346048924,1734659449215,-500.0,0.00024999,4]
[346048926,1734659449225,-500.0,0.00024999,4]
[346048928,1734659449235,-817.28,0.00024999,4]
[346048930,1734659449245,-500.0,0.00024999,4]
[346048932,1734659449255,-817.28,0.00024999,4]
[346048934,1734659449264,-817.28,0.00024999,4]
[346048936,1734659449274,-500.0,0.00024999,4]
[346048938,1734659449284,-396.58393165,0.00024999,4]
[346048940,1734659449295,-817.28,0.00024999,4]
[346048942,1734659449308,-502.37154138,0.00024999,4]
[346048944,1734659449323,-817.28,0.00024999,4]
[346048946,1734659449334,-817.28,0.00024999,4]
[346048948,1734659449344,-817.28,0.00024999,4]
[346048950,1734659449356,-817.28,0.00024999,4]
[346048951,1734659449366,-817.28,0.00024999,4]
[346048954,1734659449376,-817.33905071,0.00024999,4]
[346048955,1734659449391,-500.0,0.00024999,4]
[346048958,1734659449402,-500.0,0.00024999,4]
[346048960,1734659449413,-500.0,0.00024999,4]
[346048962,1734659449424,-500.0,0.00024999,4]
[346048963,1734659449434,-212.683241,0.00024999,4]
[346048965,1734659449445,-3067.92,0.00024999,4]
[346048967,1734659449456,-539.04,0.00024999,4]
[346048982,1734659449587,-3067.92,0.00024999,4]
[346048984,1734659449596,-539.04,0.00024999,4]
[346048986,1734659449605,-3067.92,0.00024999,4]
[346048988,1734659449614,-3067.92,0.00024999,4]
[346048990,1734659449623,-539.04,0.00024999,4]
[346048992,1734659449632,-3067.92,0.00024999,4]
[346048994,1734659449641,-539.04,0.00024999,4]
[346048996,1734659449650,-3067.92,0.00024999,4]
[346048998,1734659449659,-539.04,0.00024999,4]
[346049000,1734659449669,-3067.92,0.00024999,4]
[346049002,1734659449678,-539.04,0.00024999,4]
[346049004,1734659449687,-3067.92,0.00024999,4]
[346049006,1734659449696,-539.04,0.00024999,4]
[346049008,1734659449704,-3067.92,0.00024999,4]
[346049010,1734659449713,-539.04,0.00024999,4]
[346049012,1734659449722,-3067.92,0.00024999,4]
[346049013,1734659449730,-539.04,0.00024999,4]
[346049015,1734659449740,-3067.92,0.00024999,4]
[346049017,1734659449749,-539.04,0.00024999,4]
[346049019,1734659449758,-3067.92,0.00024999,4]
[346049021,1734659449767,-539.04,0.00024999,4]
[346049023,1734659449776,-3067.92,0.00024999,4]
[346049025,1734659449785,-539.04,0.00024999,4]
[346049027,1734659449793,-3067.92,0.00024999,4]
[346049029,1734659449802,-539.04,0.00024999,4]
[346049031,1734659449811,-3067.92,0.00024999,4]
[346049033,1734659449819,-539.04,0.00024999,4]
[346049035,1734659449828,-500.0,0.00024999,4]
[346049036,1734659449837,-3067.92,0.00024999,4]
[346049038,1734659449846,-539.04,0.00024999,4]
[346049040,1734659449855,-500.0,0.00024999,4]
[346049042,1734659449864,-539.04,0.00024999,4]
[346049043,1734659449872,-3067.92,0.00024999,4]
[346049044,1734659449881,-500.0,0.00024999,4]
[346049045,1734659449890,-3067.92,0.00024999,4]
[346049046,1734659449898,-539.04,0.00024999,4]
[346049047,1734659449907,-527.96543346,0.00024999,4]
[346049048,1734659449916,-3067.92,0.00024999,4]
[346049049,1734659449925,-539.04,0.00024999,4]
[346049050,1734659449934,-3067.95361801,0.00024999,4]
[346049051,1734659449943,-539.04,0.00024999,4]
[346049052,1734659449952,-539.04,0.00024999,4]
[346049053,1734659449961,-539.04,0.00024999,4]
[346049054,1734659449970,-539.04,0.00024999,4]
[346049055,1734659449979,-539.04,0.00024999,4]
[346049056,1734659449988,-424.62349419,0.00024999,4]
[346049057,1734659449997,-539.08151875,0.00024999,4]
[346049058,1734659450005,-501.97447794,0.00024999,4]
[346049059,1734659450014,-535.4,0.00024999,4]
[346049060,1734659450023,-535.4,0.00024999,4]
[346049062,1734659450032,-535.4,0.00024999,4]
[346049064,1734659450041,-500.0,0.00024999,4]
[346049066,1734659450050,-500.0,0.00024999,4]
[346049068,1734659450059,-500.0,0.00024999,4]
[346049070,1734659450067,-535.4,0.00024999,4]
[346049072,1734659450076,-267.32909257,0.00024999,4]
[346049074,1734659450085,-500.0,0.00024999,4]
[346049076,1734659450094,-535.4,0.00024999,4]
[346049078,1734659450102,-535.4,0.00024999,4]
[346049080,1734659450111,-1670.71,0.00024999,4]
[346049081,1734659450120,-526.23059648,0.00024999,4]
[346049083,1734659450128,-500.0,0.00024999,4]
[346049085,1734659450137,-535.4,0.00024999,4]
[346049087,1734659450146,-1670.71,0.00024999,4]
[346049089,1734659450155,-500.0,0.00024999,4]
[346049091,1734659450165,-535.4,0.00024999,4]
[346049093,1734659450173,-1670.71,0.00024999,4]
[346049095,1734659450184,-535.4,0.00024999,4]
[346049097,1734659450193,-500.0,0.00024999,4]
[346049099,1734659450202,-1670.71,0.00024999,4]
[346049101,1734659450211,-535.4,0.00024999,4]
[346049103,1734659450219,-500.0,0.00024999,4]
[346049105,1734659450228,-1670.71,0.00024999,4]
[346049107,1734659450236,-535.4,0.00024999,4]
[346049109,1734659450245,-500.0,0.00024999,4]
[346049111,1734659450253,-1670.71,0.00024999,4]
[346049112,1734659450262,-535.4,0.00024999,4]
[346049114,1734659450271,-500.0,0.00024999,4]
[346049116,1734659450280,-1670.71,0.00024999,4]
[346049118,1734659450288,-535.4,0.00024999,4]
[346049120,1734659450297,-173.21333439,0.00024999,4]
[346049122,1734659450310,-1670.71,0.00024999,4]
[346049124,1734659450319,-535.4,0.00024999,4]
[346049126,1734659450328,-1670.71,0.00024999,4]
[346049128,1734659450337,-535.4,0.00024999,4]
[346049130,1734659450346,-502.55843522,0.00024999,4]
[346049132,1734659450355,-1670.71,0.00024999,4]
[346049134,1734659450365,-535.4,0.00024999,4]
[346049136,1734659450374,-535.4,0.00024999,4]
[346049138,1734659450383,-1670.71,0.00024999,4]
[346049140,1734659450392,-535.4,0.00024999,4]
[346049142,1734659450403,-1670.71,0.00024999,4]
[346049144,1734659450412,-535.4,0.00024999,4]
[346049146,1734659450422,-535.4,0.00024999,4]
[346049148,1734659450431,-1670.71,0.00024999,4]
[346049150,1734659450440,-535.4,0.00024999,4]
[346049152,1734659450449,-1670.71,0.00024999,4]
[346049154,1734659450458,-535.4,0.00024999,4]
[346049156,1734659450467,-1670.71,0.00024999,4]
[346049158,1734659450476,-535.4,0.00024999,4]
[346049160,1734659450485,-1670.71,0.00024999,4]
[346049162,1734659450494,-535.43898995,0.00024999,4]
[346049164,1734659450502,-1670.71,0.00024999,4]
[346049165,1734659450511,-1670.71,0.00024999,4]
[346049167,1734659450520,-1670.71,0.00024999,4]
[346049169,1734659450528,-1670.71,0.00024999,4]
[346049171,1734659450539,-500.0,0.00024999,4]
[346049173,1734659450548,-1670.71,0.00024999,4]
[346049175,1734659450557,-504.12160632,0.00024999,4]
[346049177,1734659450566,-1670.71,0.00024999,4]
[346049179,1734659450575,-500.0,0.00024999,4]
[346049181,1734659450584,-625.55,0.00024999,4]
[346049183,1734659450593,-500.0,0.00024999,4]
[346049185,1734659450601,-1670.71,0.00024999,4]
[346049187,1734659450610,-625.55,0.00024999,4]
[346049189,1734659450618,-500.0,0.00024999,4]
[346049191,1734659450627,-1670.87521928,0.00024999,4]
[346049193,1734659450635,-625.55,0.00024999,4]
[346049195,1734659450644,-500.0,0.00024999,4]
[346049197,1734659450653,-625.55,0.00024999,4]
[346049199,1734659450663,-500.0,0.00024999,4]
[346049201,1734659450672,-625.55,0.00024999,4]
[346049203,1734659450681,-500.0,0.00024999,4]
[346049205,1734659450690,-625.55,0.00024999,4]
[346049207,1734659450699,-500.0,0.00024999,4]
[346049208,1734659450708,-625.55,0.00024999,4]
[346049210,1734659450717,-500.0,0.00024999,4]
[346049212,1734659450726,-441.35878198,0.00024999,4]
[346049214,1734659450734,-625.55,0.00024999,4]
[346049216,1734659450743,-625.55,0.00024999,4]
[346049218,1734659450754,-625.55,0.00024999,4]
[346049220,1734659450763,-625.55,0.00024999,4]
[346049222,1734659450772,-625.55,0.00024999,4]
[346049224,1734659450781,-625.55,0.00024999,4]
[346049226,1734659450790,-625.55,0.00024999,4]
[346049228,1734659450798,-1013.57,0.00024999,4]
[346049230,1734659450807,-625.55,0.00024999,4]
[346049232,1734659450816,-1013.57,0.00024999,4]
[346049234,1734659450824,-625.55,0.00024999,4]
[346049236,1734659450833,-1013.57,0.00024999,4]
[346049238,1734659450841,-1013.57,0.00024999,4]
[346049240,1734659450850,-625.55,0.00024999,4]
[346049242,1734659450858,-1013.57,0.00024999,4]
[346049244,1734659450867,-625.55,0.00024999,4]
[346049246,1734659450876,-1013.57,0.00024999,4]
[346049248,1734659450885,-1041.04,0.00024999,4]
[346049250,1734659450893,-625.55,0.00024999,4]
[346049252,1734659450902,-1013.57,0.00024999,4]
[346049254,1734659450911,-1041.04,0.00024999,4]
[346049256,1734659450922,-625.55,0.00024999,4]
[346049258,1734659450931,-1013.57,0.00024999,4]
[346049259,1734659450939,-625.55,0.00024999,4]
[346049261,1734659450948,-1041.04,0.00024999,4]
[346049263,1734659450957,-1013.57,0.00024999,4]
[346049265,1734659450966,-625.55,0.00024999,4]
[346049267,1734659450975,-1041.04,0.00024999,4]
[346049269,1734659450984,-1013.57,0.00024999,4]
[346049271,1734659450993,-625.55,0.00024999,4]
[346049273,1734659451001,-1013.57,0.00024999,4]
[346049275,1734659451010,-625.77134187,0.00024999,4]
[346049277,1734659451019,-1013.57,0.00024999,4]
[346049279,1734659451027,-1041.04,0.00024999,4]
[346049281,1734659451036,-1041.04,0.00024999,4]
[346049283,1734659451045,-1041.04,0.00024999,4]
[346049285,1734659451054,-1013.57,0.00024999,4]
[346049287,1734659451064,-1041.04,0.00024999,4]
[346049289,1734659451074,-1013.57,0.00024999,4]
[346049291,1734659451083,-1013.57,0.00024999,4]
[346049293,1734659451092,-1041.04,0.00024999,4]
[346049295,1734659451101,-1013.57,0.00024999,4]
[346049297,1734659451110,-1041.04,0.00024999,4]
[346049299,1734659451119,-1013.57,0.00024999,4]
[346049301,1734659451127,-1041.04,0.00024999,4]
[346049303,1734659451136,-1013.57,0.00024999,4]
[346049305,1734659451145,-1041.04,0.00024999,4]
[346049307,1734659451154,-1013.57,0.00024999,4]
[346049309,1734659451164,-1041.04,0.00024999,4]
[346049311,1734659451173,-1013.73517597,0.00024999,4]
[346049313,1734659451182,-1041.04,0.00024999,4]
[346049315,1734659451190,-1041.04,0.00024999,4]
[346049317,1734659451199,-500.0,0.00024999,4]
[346049319,1734659451208,-1041.04,0.00024999,4]
[346049320,1734659451216,-500.0,0.00024999,4]
[346049322,1734659451225,-1041.04,0.00024999,4]
[346049324,1734659451234,-422.7066194,0.00024999,4]
[346049326,1734659451243,-1041.04,0.00024999,4]
[346049328,1734659451251,-1041.04,0.00024999,4]
[346049330,1734659451260,-500.0,0.00024999,4]
[346049332,1734659451269,-1041.04,0.00024999,4]
[346049334,1734659451278,-1041.04,0.00024999,4]
[346049336,1734659451287,-500.0,0.00024999,4]
[346049338,1734659451296,-1041.04,0.00024999,4]
[346049340,1734659451310,-1041.04,0.00024999,4]
[346049342,1734659451319,-500.0,0.00024999,4]
[346049344,1734659451330,-1041.09867799,0.00024999,4]
[346049346,1734659451340,-500.0,0.00024999,4]
[346049348,1734659451350,-500.0,0.00024999,4]
[346049350,1734659451359,-500.0,0.00024999,4]
[346049352,1734659451370,-500.0,0.00024999,4]
[346049354,1734659451384,-500.0,0.00024999,4]
[346049356,1734659451394,-500.0,0.00024999,4]
[346049358,1734659451403,-500.0,0.00024999,4]
[346049360,1734659451412,-500.0,0.00024999,4]
[346049362,1734659451422,-500.0,0.00024999,4]
[346049364,1734659451430,-500.0,0.00024999,4]
[346049366,1734659451439,-500.0,0.00024999,4]
[346049368,1734659451448,-500.0,0.00024999,4]
[346049370,1734659451458,-500.0,0.00024999,4]
[346049372,1734659451467,-500.0,0.00024999,4]
[346049374,1734659451475,-500.0,0.00024999,4]
[346049376,1734659451484,-500.0,0.00024999,4]
[346049378,1734659451493,-500.0,0.00024999,4]
[346049380,1734659451501,-500.0,0.00024999,4]
[346049382,1734659451510,-500.0,0.00024999,4]
[346049384,1734659451519,-500.0,0.00024999,4]
[346049386,1734659451527,-500.0,0.00024999,4]
[346049388,1734659451536,-648.34342002,0.00024999,4]
[346049389,1734659451545,-500.0,0.00024999,4]
[346049391,1734659451554,-500.0,0.00024999,4]
[346049393,1734659451563,-500.0,0.00024999,4]
[346049395,1734659451571,-601.90167609,0.00024999,4]
[346049397,1734659451580,-500.0,0.00024999,4]
[346049399,1734659451589,-543.22541539,0.00024999,4]
[346049401,1734659451597,-500.0,0.00024999,4]
[346049403,1734659451606,-520.73485029,0.00024999,4]
[346049405,1734659451615,-500.0,0.00024999,4]
[346049407,1734659451623,-500.0,0.00024999,4]
[346049409,1734659451632,-500.0,0.00024999,4]
[346049411,1734659451641,-500.0,0.00024999,4]
[346049413,1734659451649,-500.0,0.00024999,4]
[346049415,1734659451658,-500.0,0.00024999,4]
[346049417,1734659451668,-500.0,0.00024999,4]
[346049419,1734659451677,-489.53413953,0.00024999,4]
[346049421,1734659451688,-531.01020884,0.00024999,4]
[346049423,1734659451697,-500.0,0.00024999,4]
[346049425,1734659451705,-293.98540241,0.00024999,4]
[346049427,1734659451714,-150.0,0.00024999,2]
[346049429,1734659451723,-500.0,0.00024999,4]
[346049431,1734659451731,-500.0,0.00024999,4]
[346049433,1734659451740,-150.0,0.00024999,2]
[346049435,1734659451749,-500.0,0.00024999,4]
[346049437,1734659451758,-500.0,0.00024999,4]
[346049439,1734659451767,-500.0,0.00024999,4]
[346049441,1734659451775,-150.0,0.00024999,2]
[346049442,1734659451784,-500.0,0.00024999,4]
[346049444,1734659451792,-500.0,0.00024999,4]
[346049446,1734659451801,-500.0,0.00024999,4]
[346049448,1734659451809,-150.0,0.00024999,2]
[346049450,1734659451818,-500.0,0.00024999,4]
[346049452,1734659451827,-500.0,0.00024999,4]
[346049454,1734659451835,-500.0,0.00024999,4]
[346049456,1734659451845,-500.0,0.00024999,4]
[346049458,1734659451854,-500.0,0.00024999,4]
[346049460,1734659451865,-500.0,0.00024999,4]
[346049462,1734659451874,-430.56787867,0.00024999,4]
[346049464,1734659451883,-150.0,0.00024999,2]
[346049466,1734659451892,-500.0,0.00024999,4]
[346049468,1734659451901,-500.0,0.00024999,4]
[346049470,1734659451910,-500.0,0.00024999,4]
[346049472,1734659451920,-500.0,0.00024999,4]
[346049475,1734659451929,-422.21764124,0.00024999,4]
[346049477,1734659451939,-500.0,0.00024999,4]
[346049478,1734659451947,-500.0,0.00024999,4]
[346049480,1734659451956,-500.0,0.00024999,4]
[346049482,1734659451965,-340.8459367,0.00024999,4]
[346049484,1734659451974,-150.0,0.00024999,2]
[346049486,1734659451983,-150.0,0.00024999,2]
[346049488,1734659451991,-150.0,0.00024999,2]
[346049490,1734659452000,-291.90354512,0.00024999,4]
[346049492,1734659452009,-150.0,0.00024999,2]
[346049494,1734659452018,-150.0,0.00024999,2]
[346049496,1734659452026,-150.0,0.00024999,2]
[346049498,1734659452035,-150.0,0.00024999,2]
[346049500,1734659452044,-150.0,0.00024999,2]
[346049502,1734659452052,-150.0,0.00024999,2]
[346049504,1734659452061,-150.0,0.00024999,2]
[346049506,1734659452071,-500.0,0.00024999,4]
[346049508,1734659452080,-500.0,0.00024999,4]
[346049510,1734659452089,-150.0,0.00024999,2]
[346049512,1734659452098,-847.45,0.00024999,4]
[346049514,1734659452106,-178.11365722,0.00024999,4]
[346049516,1734659452115,-847.45,0.00024999,4]
[346049518,1734659452124,-847.45,0.00024999,4]
[346049520,1734659452132,-847.45,0.00024999,4]
[346049522,1734659452142,-847.45,0.00024999,4]
[346049524,1734659452151,-150.0,0.00024999,2]
[346049526,1734659452159,-847.45,0.00024999,4]
[346049528,1734659452169,-847.45,0.00024999,4]
[346049530,1734659452178,-500.0,0.00024999,4]
[346049532,1734659452187,-847.45,0.00024999,4]
[346049534,1734659452195,-572.40325463,0.00024999,4]
[346049536,1734659452204,-150.0,0.00024999,2]
[346049538,1734659452213,-847.45,0.00024999,4]
[346049539,1734659452221,-847.45,0.00024999,4]
[346049540,1734659452230,-500.0,0.00024999,4]
[346049541,1734659452239,-847.45,0.00024999,4]
[346049542,1734659452247,-500.0,0.00024999,4]
[346049543,1734659452256,-150.0,0.00024999,2]
[346049545,1734659452265,-847.45,0.00024999,4]
[346049547,1734659452274,-500.0,0.00024999,4]
[346049548,1734659452282,-847.45,0.00024999,4]
[346049550,1734659452291,-500.0,0.00024999,4]
[346049552,1734659452302,-847.45,0.00024999,4]
[346049554,1734659452312,-500.0,0.00024999,4]
[346049556,1734659452321,-847.45,0.00024999,4]
[346049558,1734659452330,-150.0,0.00024999,2]
[346049560,1734659452339,-500.0,0.00024999,4]
[346049562,1734659452349,-847.45,0.00024999,4]
[346049564,1734659452358,-500.0,0.00024999,4]
[346049566,1734659452367,-847.45,0.00024999,4]
[346049568,1734659452376,-847.45,0.00024999,4]
[346049570,1734659452385,-334.28151705,0.00024999,4]
[346049572,1734659452394,-150.0,0.00024999,2]
[346049574,1734659452403,-847.45,0.00024999,4]
[346049576,1734659452414,-216.69004984,0.00024999,4]
[346049578,1734659452423,-847.45,0.00024999,4]
[346049580,1734659452432,-847.45,0.00024999,4]
[346049582,1734659452442,-847.45,0.00024999,4]
[346049585,1734659452451,-150.0,0.00024999,2]
[346049586,1734659452460,-847.45,0.00024999,4]
[346049588,1734659452470,-847.62983629,0.00024999,4]
[346049590,1734659452478,-179.83149406,0.00024999,2]
[346049592,1734659452487,-2595.96,0.00024999,4]
[346049594,1734659452496,-2595.96,0.00024999,4]
[346049596,1734659452505,-2595.96,0.00024999,4]
[346049598,1734659452514,-2595.96,0.00024999,4]
[346049613,1734659452641,-2595.96,0.00024999,4]
[346049615,1734659452651,-525.63905728,0.00024999,4]
[346049617,1734659452661,-2595.96,0.00024999,4]
[346049619,1734659452672,-2595.96,0.00024999,4]
[346049621,1734659452681,-2595.96,0.00024999,4]
[346049623,1734659452690,-2595.96,0.00024999,4]
[346049625,1734659452699,-2595.96,0.00024999,4]
[346049627,1734659452709,-500.0,0.00024999,4]
[346049629,1734659452718,-2595.96,0.00024999,4]
[346049631,1734659452727,-500.0,0.00024999,4]
[346049633,1734659452736,-2595.96,0.00024999,4]
[346049635,1734659452746,-500.0,0.00024999,4]
[346049637,1734659452755,-2595.96,0.00024999,4]
[346049639,1734659452764,-544.33533013,0.00024999,4]
[346049641,1734659452773,-2595.96,0.00024999,4]
[346049643,1734659452782,-500.0,0.00024999,4]
[346049645,1734659452791,-2595.96,0.00024999,4]
[346049647,1734659452800,-500.0,0.00024999,4]
[346049649,1734659452809,-2595.96,0.00024999,4]
[346049651,1734659452818,-274.76423378,0.00024999,4]
[346049653,1734659452827,-2595.96,0.00024999,4]
[346049655,1734659452837,-2595.96,0.00024999,4]
[346049657,1734659452846,-1087.0,0.00025,2]
[346049659,1734659452855,-302399.17804521,0.00025,3]
[346049661,1734659452865,-3675.37285029,0.00025,2]
[346049663,1734659452874,-179.14669119,0.00025,3]
[346049665,1734659452883,-1888553.85378106,0.00025,2]
[346049667,1734659452893,-5000.0,0.00025,2]
[346049669,1734659452902,-5000.0,0.00025,30]
[346049671,1734659452911,-202.5,0.00025,2]
[346049673,1734659452922,-7136555.08026411,0.00025,2]
[346049697,1734659453127,-2595.96,0.00024999,4]
[346049699,1734659453136,-7710.51783422,0.00025,2]
[346049704,1734659453172,-2595.96,0.00024999,4]
[346049706,1734659453181,-2595.96,0.00024999,4]
[346049708,1734659453192,-2595.96,0.00024999,4]
[346049710,1734659453201,-2595.96,0.00024999,4]
[346049712,1734659453209,-2596.158,0.00024999,4]
[346049714,1734659453218,-4812653.89040759,0.00025,2]
[346049717,1734659453237,-912.01435526,0.00025,2]
[346049720,1734659453255,-372.80077324,0.00025,2]
[346049723,1734659453277,-988.95361278,0.00025,2]
[346049726,1734659453288,-6584.17930504,0.00025,2]
[346049730,1734659453321,-19.93755594,0.00025,2]
[346049733,1734659453343,-516.85280274,0.00024998,4]
[346049735,1734659453351,-303079.41546726,0.00025,2]
[346049737,1734659453362,-34249.2830118,0.00025,2]
[346049739,1734659453373,-997.06444664,0.00025,2]
[346049743,1734659453400,-6818.90000022,0.00025,2]
[346050475,1734659471596,6008.69,0.000225,30]
[346050499,1734660632354,-385.12,0.00021862,2]
[346050501,1734660632364,-422.672,0.0002375,2]
[346050503,1734660632373,-267.61262004,0.0002375,2]
[346050504,1734660632383,-161.0,0.00023774,2]
[346050506,1734660632392,-1014.86,0.0002382,2]
[346050508,1734660632404,-250.0,0.00023891,2]
[346050509,1734660632413,-181.4,0.00023905,2]
[346050510,1734660632422,-1000.0,0.00023936,2]
[346050511,1734660632431,-351.51,0.00023944,2]
[346050512,1734660632440,-664.59,0.00023961,2]
[346050513,1734660632449,-155.95,0.0002407,30]
[346050514,1734660632458,-385.12,0.00024126,2]
[346050515,1734660632467,-158.0,0.00024186,2]
[346050516,1734660632476,-4229.44,0.00024187,2]
[346050517,1734660632485,-576.0,0.0002425,2]
[346050518,1734660632494,-576.0,0.000245,2]
[346050519,1734660632503,-80023.2490365,0.000245,4]
[346050520,1734660632515,-6723.20293524,0.000245,4]
[346050521,1734660632555,-1189.367004,0.000245,4]
[346050522,1734660632566,-450.653,0.000245,4]
[346050523,1734660632577,-3354.68802426,0.000245,4]
[346050524,1734660632586,-543.27653424,0.00024625,2]
[346050525,1734660632595,-150.0,0.00024658,2]
[346050526,1734660632604,-1000.0,0.00024658,2]
[346050527,1734660632613,-1274.397,0.00024699,2]
[346050528,1734660632622,-190.378,0.00024699,2]
[346050529,1734660632632,-570.731,0.00024699,2]
[346050530,1734660632642,-151.437,0.00024699,2]
[346050531,1734660632651,-635.73,0.00024699,2]
[346050532,1734660632661,-823.0,0.00024699,2]
[346050533,1734660632670,-539.491,0.00024699,2]
[346050534,1734660632681,-1541.376,0.00024699,2]
[346050535,1734660632690,-9805.1598201,0.00024699,2]
[346050536,1734660632766,-716.64,0.00024699,2]
[346050538,1734660632777,-3222.2001799,0.00024699,2]
[346050540,1734660632786,-3934.874,0.00024699,2]
[346050542,1734660632795,-311.24,0.00024699,2]
[346050544,1734660632804,-151.321,0.00024699,2]
[346050546,1734660632813,-576.0,0.0002475,2]
[346050547,1734660632823,-1639.5723281,0.00024777,2]
[346050548,1734660632833,-1639.57232805,0.00024791,2]
[346050549,1734660632843,-1007.0,0.000248,2]
[346050550,1734660632852,-1639.57232805,0.00024804,2]
[346050551,1734660632861,-1639.57232805,0.00024818,2]
[346050552,1734660632871,-1639.57232805,0.00024832,2]
[346050553,1734660632880,-1639.57232805,0.00024845,2]
[346050554,1734660632889,-23115.71567502,0.0002485,2]
[346050555,1734660632898,-1639.57232805,0.00024859,2]
[346050556,1734660632908,-1639.57232805,0.00024873,2]
[346050557,1734660632917,-800.0,0.00024877,2]
[346050558,1734660632927,-1639.57232805,0.00024886,2]
[346050559,1734660632936,-151.98681924,0.00024898,2]
[346050560,1734660632945,-342.736,0.00024898,2]
[346050561,1734660632955,-151.98681921,0.00024899,2]
[346050562,1734660632964,-6269.2931,0.00024899,2]
[346050563,1734660632974,-47259.5541,0.00024899,2]
[346050564,1734660632985,-151.98681921,0.00024899,2]
[346050565,1734660632995,-510.97534392,0.00024899,2]
[346050566,1734660633004,-151.98681921,0.000249,2]
[346050567,1734660633014,-1116.0,0.000249,2]
[346050568,1734660633023,-200.0,0.000249,2]
[346050569,1734660633033,-152.89,0.000249,31]
[346050570,1734660633042,-152.89,0.000249,31]
[346050571,1734660633051,-152.89,0.000249,31]
[346050572,1734660633061,-152.89,0.000249,31]
[346050573,1734660633070,-152.89,0.000249,31]
[346050574,1734660633079,-152.89,0.000249,31]
[346050575,1734660633089,-152.89,0.000249,31]
[346050576,1734660633098,-167.42419604,0.000249,2]
[346050577,1734660633107,-151.98681921,0.000249,2]
[346050578,1734660633117,-299.03143134,0.000249,2]
[346050579,1734660633126,-1020.91723299,0.000249,2]
[346050580,1734660633136,-201.29698575,0.000249,2]
[346050581,1734660633146,-201.29698574,0.000249,2]
[346050582,1734660633157,-1639.57232805,0.000249,2]
[346050583,1734660633167,-500.0,0.00024973,2]
[346050584,1734660633177,-155.59,0.00024989,2]
[346050585,1734660633187,-222.122011,0.00024996,3]
[346050586,1734660633198,-222.122011,0.00024996,4]
[346050587,1734660633208,-222.122011,0.00024996,5]
[346050588,1734660633218,-222.122011,0.00024996,6]
[346050589,1734660633228,-222.122011,0.00024996,7]
[346050590,1734660633238,-234.122011,0.00024996,14]
[346050591,1734660633248,-234.122011,0.00024996,13]